fUSD/lending_fUSD_20250610
["ID","MTS","AMOUNT","RATE_DAILY","PERIOD"]
[365221628,1749544270250,1084.8,0.000199,31]
[365221629,1749544270316,1084.8,0.000199,31]
[365221630,1749544270399,1084.8,0.000199,31]
[365221631,1749544270456,1084.8,0.000199,31]
[365221632,1749544270521,1084.8,0.000199,31]
[365221697,1749544360256,150.0,0.00017016,7]
[365221698,1749544366810,150.0,0.000246,120]
[365221699,1749544440365,1507.02,0.00019205,30]
[365221700,1749544448462,1024.0,0.00024658,120]
[365221701,1749544460276,1024.0,0.00024658,120]
[365221702,1749544480707,1024.0,0.00024658,120]
[365221703,1749544489539,150.0,0.000246,120]
[365221704,1749544492728,1024.0,0.00024658,120]
[365221706,1749544506722,1024.0,0.00024658,120]
[365221707,1749544525904,1024.0,0.0002,30]
[365221708,1749544543779,1024.0,0.0002,30]
[365221709,1749544561552,1303.71,0.0002,30]
[365221710,1749544612224,150.0,0.000246,120]
[365221711,1749544734827,150.0,0.000246,120]
[365221712,1749544758956,180.31,0.00013699,2]
[365221714,1749544857825,150.0,0.000246,120]
[365221715,1749544881288,911.32,0.000199,31]
[365221716,1749544881355,911.32,0.000199,31]
[365221717,1749544881423,911.32,0.000199,31]
[365221718,1749544881486,911.32,0.000199,31]
[365221719,1749544881545,911.32,0.000199,31]
[365221720,1749544881612,911.32,0.000199,31]
[365221721,1749544881672,911.32,0.000199,31]
[365221722,1749544881939,911.32,0.000199,31]
[365221723,1749544882002,911.32,0.000199,31]
[365221724,1749544882066,911.32,0.000199,31]
[365221725,1749544882126,911.32,0.000199,31]
[365221726,1749544882184,911.32,0.000199,31]
[365221727,1749544882243,911.32,0.000199,31]
[365221728,1749544882305,911.32,0.000199,31]
[365221729,1749544882364,911.32,0.000199,31]
[365221730,1749544882425,911.32,0.000199,31]
[365221731,1749544981020,150.0,0.000246,120]
[365221732,1749545104009,150.0,0.000246,120]
[365221733,1749545171740,200.0,0.0001519,2]
[365221734,1749545171999,200.0,0.0001588,2]
[365221738,1749545226697,150.0,0.000246,120]
[365221739,1749545301399,409.92,0.00014921,2]
[365221740,1749545305536,50000.0,0.00017052,5]
[365221741,1749545331413,50000.0,0.00017052,5]
[365221742,1749545349439,150.0,0.000246,120]
[365221752,1749545431864,-1200.0,0.00016437,2]
[365221753,1749545431874,-490.0,0.00016438,2]
[365221754,1749545431884,-490.0,0.00016438,2]
[365221755,1749545431893,-497.42,0.00016438,2]
[365221756,1749545431902,-490.0,0.00016438,2]
[365221757,1749545431911,-388.34956933,0.00016438,2]
[365221758,1749545431920,-200.0,0.00016569,3]
[365221759,1749545431930,-490.0,0.00016602,2]
[365221760,1749545431939,-166.52400352,0.00016602,2]
[365221761,1749545431951,-323.47599648,0.00016602,2]
[365221762,1749545431960,-88.36842342,0.00016767,2]
[365221763,1749545431993,150.0,0.00016803,7]
[365221764,1749545432006,-401.23857953,0.00016767,2]
[365221765,1749545432018,-0.39299705,0.00016767,2]
[365221766,1749545432027,-490.0,0.00016767,2]
[365221767,1749545432037,-207.4,0.00016781,2]
[365221768,1749545432047,-173.87,0.00016829,2]
[365221769,1749545432058,-635.6345904,0.00016852,2]
[365221770,1749545432127,-364.3654096,0.00016852,2]
[365221771,1749545432137,-254.05277372,0.00016931,2]
[365221772,1749545432149,-269.63186628,0.00016931,2]
[365221773,1749545432159,-461.04,0.00016931,2]
[365221774,1749545432168,-833.29909032,0.00016994,2]
[365221775,1749545432177,-409.92,0.00017185,2]
[365221776,1749545432187,-200.0,0.00017259,4]
[365221777,1749545432197,-454.78,0.00017505,2]
[365221778,1749545432206,-454.78,0.000176,2]
[365221779,1749545432215,-201.37795611,0.000176,2]
[365221819,1749545438174,-253.40204389,0.000176,2]
[365221820,1749545438185,-381.98286577,0.000176,2]
[365222288,1749545443088,-72.79713423,0.000176,2]
[365222290,1749545443097,-424.62286577,0.000176,2]
[365222490,1749545446164,-30.15713423,0.000176,2]
[365222491,1749545446174,-299.99,0.00017728,4]
[365222492,1749545446184,-150.99,0.00017728,2]
[365222493,1749545446193,-682.82973613,0.00017728,2]
[365222496,1749545457036,200.11204449,0.00024658,120]
[365222497,1749545472175,150.0,0.000246,120]
[365222498,1749545493380,756.48,0.000199,31]
[365222499,1749545493445,756.48,0.000199,31]
[365222500,1749545493503,756.48,0.000199,31]
[365222501,1749545493565,756.48,0.000199,31]
[365222502,1749545493626,756.48,0.000199,31]
[365222503,1749545493685,756.48,0.000199,31]
[365222504,1749545493758,756.48,0.000199,31]
[365222505,1749545494043,756.48,0.000199,31]
[365222506,1749545494102,756.48,0.000199,31]
[365222507,1749545494159,756.48,0.000199,31]
[365222508,1749545494219,756.48,0.000199,31]
[365222509,1749545494276,756.48,0.000199,31]
[365222510,1749545494331,756.48,0.000199,31]
[365222511,1749545494388,756.48,0.000199,31]
[365222512,1749545494445,756.48,0.000199,31]
[365222513,1749545494499,756.48,0.000199,31]
[365222514,1749545519854,160.08963559,0.00024658,120]
[365222520,1749545581839,200.0,0.00024658,120]
[365222521,1749545594909,150.0,0.000246,120]
[365222522,1749545618616,1318.64,0.00019205,30]
[365222523,1749545644772,200.0,0.00024658,120]
[365222524,1749545717823,150.0,0.000246,120]
[365222526,1749545842082,150.0,0.000246,120]
[365222530,1749545868049,200.0,0.00024658,120]
[365222533,1749545892033,200.0,0.00015948,2]
[365222541,1749545965514,150.0,0.000246,120]
[365222554,1749546087768,150.0,0.000246,120]
[365222556,1749546105533,637.05,0.000199,31]
[365222557,1749546105594,637.05,0.000199,31]
[365222558,1749546105668,637.05,0.000199,31]
[365222559,1749546105728,637.05,0.000199,31]
[365222560,1749546106064,637.05,0.000199,31]
[365222561,1749546106122,637.05,0.000199,31]
[365222562,1749546106183,637.05,0.000199,31]
[365222563,1749546106238,637.05,0.000199,31]
[365222564,1749546106296,637.05,0.000199,31]
[365222565,1749546106361,637.05,0.000199,31]
[365222566,1749546106419,637.05,0.000199,31]
[365222567,1749546106477,637.05,0.000199,31]
[365222568,1749546106535,637.05,0.000199,31]
[365222569,1749546106600,637.05,0.000199,31]
[365222570,1749546106662,637.05,0.000199,31]
[365222571,1749546106723,637.05,0.000199,31]
[365222572,1749546210457,150.0,0.000246,120]
[365222573,1749546226996,19720.01862976,0.00017052,5]
[365222574,1749546252039,200.0,0.0001567,2]
[365222575,1749546281489,277.0,0.0001567,2]
[365222579,1749546312914,50000.0,0.00017052,10]
[365222580,1749546313803,484.499509,0.00024649,120]
[365222581,1749546333179,150.0,0.000246,120]
[365222582,1749546342057,865.0,0.0001567,2]
[365222583,1749546388895,15459.11812906,0.00016,2]
[365222584,1749546395240,1200.0,0.00013972,2]
[365222585,1749546396819,1200.0,0.00015342,2]
[365222586,1749546401457,254.0,0.0001589,2]
[365222587,1749546402443,150.0,0.00016,2]
[365222589,1749546456292,150.0,0.000246,120]
[365222590,1749546458092,172.34,0.00013256,2]
[365222594,1749546520528,403.29,0.00013699,2]
[365222599,1749546578950,150.0,0.000246,120]
[365222605,1749546609545,160.04479363,0.00016,2]
[365222606,1749546611744,457.0,0.00015409,2]
[365222607,1749546612033,457.0,0.00015859,2]
[365222608,1749546612475,1153.81,0.00019205,30]
[365222621,1749546632191,-650.808902,0.00016083,2]
[365222622,1749546632201,-500.0,0.00016164,2]
[365222623,1749546632211,-500.0,0.00016164,2]
[365222624,1749546632220,-586.58,0.00016245,2]
[365222625,1749546632230,-364.193108,0.0001631,3]
[365222626,1749546632278,-92.806892,0.0001631,3]
[365222627,1749546632289,-150.0,0.00016312,2]
[365222628,1749546632299,-84.643108,0.00016331,2]
[365222629,1749546632425,-115.356892,0.00016331,2]
[365222630,1749546632435,-490.0,0.00016438,2]
[365222631,1749546632446,-490.0,0.00016438,2]
[365222632,1749546632460,-300.0,0.0001652,2]
[365222634,1749546632480,-490.0,0.00016602,2]
[365222636,1749546632490,-153.93943698,0.00016602,2]
[365222638,1749546632500,-200.0,0.00016691,2]
[365222640,1749546632509,-1200.0,0.00016712,2]
[365222642,1749546632519,-1200.0,0.00016744,2]
[365222644,1749546632528,-186.69,0.00016745,2]
[365222646,1749546632538,-457.0,0.0001676,3]
[365222648,1749546632547,-346.00222007,0.00016767,2]
[365222682,1749546637994,-204.86,0.00016111,2]
[365222683,1749546638004,-143.99777993,0.00016767,2]
[365222684,1749546638014,-687.16007499,0.00016792,2]
[365222685,1749546638047,-312.83992501,0.00016792,2]
[365222686,1749546638057,-167.17,0.00016802,2]
[365222688,1749546638067,-300.0,0.00016878,2]
[365222689,1749546638077,-5510.78647522,0.0001688,2]
[365222690,1749546638153,-2353.37527564,0.0001688,2]
[365222691,1749546638166,-419.229999,0.0001688,2]
[365222692,1749546638311,-1632.98765464,0.0001688,2]
[365222881,1749546640299,-13143.67520772,0.0001688,2]
[365222883,1749546640309,-490.0,0.00016931,2]
[365222885,1749546640319,-207.4,0.00016982,2]
[365222887,1749546640329,-151.0,0.00016982,2]
[365222889,1749546640338,-490.0,0.00017095,2]
[365222891,1749546640348,-457.0,0.00017211,4]
[365222893,1749546640358,-490.0,0.0001726,2]
[365222896,1749546640367,-10279.82,0.0001726,2]
[365222897,1749546640379,-165.15769227,0.000174,2]
[365222900,1749546640389,-900.0,0.000174,6]
[365222901,1749546640398,-490.0,0.00017424,2]
[365222903,1749546640407,-309.00406879,0.00017473,2]
[365222905,1749546640418,-500.0,0.00017473,2]
[365222906,1749546640427,-500.0,0.00017473,2]
[365222907,1749546640437,-500.0,0.00017473,2]
[365222908,1749546640447,-194.45727236,0.00017499,2]
[365222909,1749546640457,-1093835.28396371,0.000175,3]
[365222910,1749546640471,-715.44462662,0.000175,3]
[365222939,1749546640771,-150.0,0.00016564,7]
[365222941,1749546640781,-192.108,0.000175,3]
[365223096,1749546642241,203.0,0.00015409,2]
[365223484,1749546646107,-405.99988936,0.000175,3]
[365223524,1749546646487,-5570.45453968,0.000175,3]
[365223526,1749546646499,-624.06633447,0.000175,3]
[365224140,1749546701844,150.0,0.000246,120]
[365224141,1749546717465,542.73,0.000199,31]
[365224142,1749546717560,542.73,0.000199,31]
[365224143,1749546717625,542.73,0.000199,31]
[365224144,1749546717695,542.73,0.000199,31]
[365224145,1749546717755,542.73,0.000199,31]
[365224146,1749546717814,542.73,0.000199,31]
[365224147,1749546717887,542.73,0.000199,31]
[365224148,1749546717952,542.73,0.000199,31]
[365224149,1749546718014,542.73,0.000199,31]
[365224150,1749546718080,542.73,0.000199,31]
[365224151,1749546718138,542.73,0.000199,31]
[365224152,1749546718195,542.73,0.000199,31]
[365224153,1749546718254,542.73,0.000199,31]
[365224154,1749546718323,542.73,0.000199,31]
[365224155,1749546718388,542.73,0.000199,31]
[365224156,1749546718455,542.73,0.000199,31]
[365224157,1749546749482,1461.59,0.00014729,2]
[365224158,1749546795026,800.0,0.00015068,2]
[365224159,1749546825081,150.0,0.000246,120]
[365224161,1749546878500,180.0,0.00015713,2]
[365224162,1749546947976,150.0,0.000246,120]
[365224163,1749546970433,500.0,0.00016,2]
[365224164,1749547005474,553.0,0.00016,2]
[365224165,1749547034425,-177.3,0.00016023,2]
[365224166,1749547070690,150.0,0.000246,120]
[365224167,1749547107080,10191.8648189,0.00016,2]
[365224169,1749547191582,800.0,0.00015068,2]
[365224170,1749547194052,150.0,0.000246,120]
[365224171,1749547296735,-151.0,0.00016023,2]
[365224172,1749547296759,-34.92931989,0.00016024,2]
[365224173,1749547299679,-500.0,0.00016024,2]
[365224174,1749547301624,449.0,0.00015661,2]
[365224175,1749547302549,-278.17068011,0.00016024,2]
[365224176,1749547302575,-70.82931989,0.00016024,2]
[365224177,1749547304469,-153.41809837,0.00016024,2]
[365224178,1749547316820,150.0,0.000246,120]
[365224179,1749547329547,455.94,0.000199,31]
[365224180,1749547329836,455.94,0.000199,31]
[365224181,1749547329892,455.94,0.000199,31]
[365224182,1749547329961,455.94,0.000199,31]
[365224183,1749547330019,455.94,0.000199,31]
[365224184,1749547330076,455.94,0.000199,31]
[365224185,1749547330130,455.94,0.000199,31]
[365224186,1749547330189,455.94,0.000199,31]
[365224187,1749547330242,455.94,0.000199,31]
[365224188,1749547330304,455.94,0.000199,31]
[365224189,1749547330365,455.94,0.000199,31]
[365224190,1749547330434,455.94,0.000199,31]
[365224191,1749547330496,455.94,0.000199,31]
[365224192,1749547330561,455.94,0.000199,31]
[365224193,1749547330625,455.94,0.000199,31]
[365224194,1749547330693,455.94,0.000199,31]
[365224195,1749547376314,-289.81557007,0.00016,2]
[365224196,1749547382451,-298.17237951,0.00016,2]
[365224197,1749547384457,-228.39441104,0.00016,2]
[365224198,1749547391082,-188.56411108,0.00016,2]
[365224199,1749547399927,-268.60379067,0.00016,2]
[365224200,1749547401944,-188.60232111,0.00016,2]
[365224201,1749547413067,-190.78624467,0.00016,2]
[365224202,1749547414990,-268.16539656,0.00016,2]
[365224203,1749547421798,-298.09753039,0.00016,2]
[365224204,1749547423529,-160.50276746,0.00016,2]
[365224205,1749547426570,900.0,0.00013972,2]
[365224206,1749547428134,900.0,0.00015342,2]
[365224207,1749547430407,-151.0,0.00016,2]
[365224208,1749547432762,-78.28547744,0.00016,2]
[365224209,1749547439496,150.0,0.000246,120]
[365224210,1749547466093,877.765694,0.00015978,2]
[365224211,1749547479479,200.0,0.00015877,2]
[365224212,1749547481917,235.34,0.00015877,2]
[365224213,1749547526032,8923.2292871,0.00016,2]
[365224214,1749547526058,23477.1998,0.00016,2]
[365224215,1749547526084,20659.13942979,0.00016,2]
[365224216,1749547548071,172.34,0.0001269,2]
[365224217,1749547553608,1000.0,0.00015848,2]
[365224218,1749547562675,150.0,0.000246,120]
[365224219,1749547566432,165.09,0.00015848,2]
[365224220,1749547572189,1480.63037021,0.00015871,2]
[365224221,1749547572212,1199.67962979,0.00015871,2]
[365224222,1749547601946,1185.45,0.00015835,2]
[365224224,1749547629353,401.63,0.00013699,2]
[365224225,1749547636047,200.0,0.00015863,2]
[365224226,1749547646163,150.0,0.00015845,7]
[365224227,1749547646802,700.0,0.00015068,2]
[365224228,1749547661607,447.0,0.00015109,2]
[365224229,1749547661877,447.0,0.00015562,2]
[365224230,1749547663069,-211.00108763,0.00016016,3]
[365224231,1749547665932,-158.56401352,0.00016016,3]
[365224232,1749547666845,9999.99999402,0.00012,2]
[365224233,1749547669326,-77.43489885,0.00016016,3]
[365224234,1749547670902,1009.58,0.00019205,30]
[365224235,1749547685927,150.0,0.000246,120]
[365224236,1749547691506,190.78624467,0.0001439,2]
[365224237,1749547692767,8705.65393152,0.00015869,2]
[365224238,1749547692794,15194.34606848,0.00015869,2]
[365224239,1749547694441,1000.0,0.000135,2]
[365224240,1749547694535,298.77167069,0.000125,2]
[365224241,1749547711196,217.68611021,0.0001,2]
[365224242,1749547713316,251.56963318,0.00014,30]
[365224245,1749547721471,348.46543093,0.00010136,2]
[365224246,1749547724818,160.04479363,0.0002,30]
[365224248,1749547728920,447.850579,0.00015978,2]
[365224256,1749547778266,180.0,0.00015713,2]
[365224264,1749547809228,150.0,0.000246,120]
[365224268,1749547832325,-500.0,0.00016059,2]
[365224269,1749547832335,-600.0,0.00016064,4]
[365224270,1749547832345,-250.0,0.00016068,2]
[365224271,1749547832355,-198.29,0.00016077,2]
[365224272,1749547832364,-600.0,0.00016079,4]
[365224273,1749547832374,-2751.0,0.00016095,2]
[365224274,1749547832384,-109.24813225,0.00016098,2]
[365224275,1749547832396,-98.57186775,0.00016098,2]
[365224276,1749547832406,-500.0,0.00016164,2]
[365224277,1749547832415,-500.0,0.00016164,2]
[365224278,1749547832425,-250.0,0.00016185,2]
[365224279,1749547832435,-1200.0,0.0001629,2]
[365224280,1749547832445,-300.0,0.00016291,2]
[365224281,1749547832454,-300.0,0.00016291,2]
[365224282,1749547832464,-46.80446528,0.00016292,2]
[365224283,1749547832475,-3498.90553472,0.00016292,2]
[365224284,1749547832485,-30.15408133,0.00016335,2]
[365224285,1749547832496,-269.84591867,0.00016335,2]
[365224286,1749547832507,-811.32512681,0.00016336,2]
[365224287,1749547832518,-152.26244215,0.00016336,2]
[365224288,1749547832528,-661.95,0.00016336,2]
[365224289,1749547832537,-5930.84033103,0.00016362,2]
[365224290,1749547832548,-151.0,0.00016364,2]
[365224291,1749547832557,-151.0,0.00016364,2]
[365224292,1749547832567,-151.0,0.00016364,2]
[365224293,1749547832576,-151.0,0.00016364,2]
[365224294,1749547832586,-151.0,0.00016365,2]
[365224295,1749547832596,-151.0,0.00016365,2]
[365224296,1749547832605,-10279.82,0.0001637,2]
[365224297,1749547832615,-11468.24,0.00016373,2]
[365224298,1749547832625,-206.43459803,0.00016437,2]
[365224299,1749547832635,-274.380397,0.00016437,2]
[365224300,1749547832644,-316.12544027,0.00016437,2]
[365224301,1749547832654,-196.47299118,0.00016437,2]
[365224302,1749547832664,-269.50752703,0.00016437,2]
[365224303,1749547832674,-490.0,0.00016438,2]
[365224304,1749547832684,-489.2,0.00016438,2]
[365224305,1749547832695,-480.0,0.00016438,2]
[365224306,1749547832705,-480.0,0.00016438,2]
[365224307,1749547832715,-490.0,0.00016438,2]
[365224308,1749547832724,-490.0,0.00016438,2]
[365224309,1749547832734,-490.0,0.00016438,2]
[365224310,1749547832744,-490.0,0.00016438,2]
[365224312,1749547832754,-490.0,0.00016438,2]
[365224314,1749547832766,-490.0,0.00016438,2]
[365224316,1749547832776,-490.0,0.00016438,2]
[365224319,1749547832787,-490.0,0.00016438,2]
[365224321,1749547832797,-183.54980345,0.00016438,2]
[365224323,1749547832808,-490.0,0.00016438,2]
[365224325,1749547832817,-490.0,0.00016438,2]
[365224327,1749547832827,-490.0,0.00016438,2]
[365224328,1749547832838,-490.0,0.00016438,2]
[365224330,1749547832848,-490.0,0.00016438,2]
[365224332,1749547832858,-490.0,0.00016438,2]
[365224334,1749547832867,-301.51,0.00016438,2]
[365224336,1749547832877,-490.0,0.00016438,2]
[365224338,1749547832887,-490.0,0.00016438,2]
[365224340,1749547832896,-559.99327855,0.00016438,2]
[365224342,1749547832905,-490.0,0.00016438,2]
[365224343,1749547832914,-490.0,0.00016438,2]
[365224345,1749547832924,-490.0,0.00016438,2]
[365224347,1749547832934,-490.0,0.00016438,2]
[365224349,1749547832944,-490.0,0.00016438,2]
[365224351,1749547832954,-490.0,0.00016438,2]
[365224353,1749547832964,-490.0,0.00016438,2]
[365224354,1749547832973,-490.0,0.00016438,2]
[365224356,1749547832983,-490.0,0.00016438,2]
[365224358,1749547832992,-490.0,0.00016438,2]
[365224360,1749547833001,-490.0,0.00016438,2]
[365224361,1749547833010,-490.0,0.00016438,2]
[365224362,1749547833020,-490.0,0.00016438,2]
[365224363,1749547833029,-490.0,0.00016438,2]
[365224364,1749547833039,-490.0,0.00016438,2]
[365224365,1749547833049,-490.0,0.00016438,2]
[365224366,1749547833059,-490.0,0.00016438,2]
[365224367,1749547833068,-490.0,0.00016438,2]
[365224368,1749547833078,-490.0,0.00016438,2]
[365224369,1749547833087,-490.0,0.00016438,2]
[365224370,1749547833096,-490.0,0.00016438,2]
[365224371,1749547833106,-490.0,0.00016438,2]
[365224372,1749547833116,-490.0,0.00016438,2]
[365224373,1749547833126,-490.0,0.00016438,2]
[365224374,1749547833136,-546.84206807,0.00016438,2]
[365224375,1749547833145,-150.48727091,0.00016438,2]
[365224376,1749547833155,-490.0,0.00016438,2]
[365224377,1749547833165,-578.2315339,0.00016438,2]
[365224378,1749547833175,-490.0,0.00016438,2]
[365224379,1749547833184,-588.64,0.00016438,2]
[365224380,1749547833194,-490.0,0.00016438,2]
[365224381,1749547833204,-346.35,0.00016438,2]
[365224382,1749547833214,-490.0,0.00016438,2]
[365224383,1749547833223,-490.0,0.00016438,2]
[365224384,1749547833233,-490.0,0.00016438,2]
[365224385,1749547833243,-490.0,0.00016438,2]
[365224386,1749547833252,-541.81,0.00016438,2]
[365224387,1749547833262,-490.0,0.00016438,2]
[365224388,1749547833271,-490.0,0.00016438,2]
[365224389,1749547833281,-320.49433006,0.00016438,2]
[365224390,1749547833291,-480.0,0.00016438,2]
[365224391,1749547833300,-490.0,0.00016438,2]
[365224392,1749547833310,-490.0,0.00016438,2]
[365224393,1749547833320,-490.0,0.00016438,2]
[365224394,1749547833330,-62.32700839,0.00016438,2]
[365224395,1749547833342,-427.67299161,0.00016438,2]
[365224396,1749547833352,-490.0,0.00016438,2]
[365224397,1749547833362,-490.0,0.00016438,2]
[365224398,1749547833371,-490.0,0.00016438,2]
[365224399,1749547833381,-490.0,0.00016438,2]
[365224400,1749547833391,-384.46,0.00016438,2]
[365224401,1749547833401,-490.0,0.00016438,2]
[365224402,1749547833410,-490.0,0.00016438,2]
[365224403,1749547833420,-490.0,0.00016438,2]
[365224404,1749547833429,-490.0,0.00016438,2]
[365224405,1749547833439,-190.29005559,0.00016438,2]
[365224406,1749547833449,-490.0,0.00016438,2]
[365224407,1749547833459,-490.0,0.00016438,2]
[365224408,1749547833468,-490.0,0.00016438,2]
[365224409,1749547833478,-490.0,0.00016438,2]
[365224410,1749547833488,-248.3512227,0.00016438,2]
[365224411,1749547833500,-241.6487773,0.00016438,2]
[365224412,1749547833510,-490.0,0.00016438,2]
[365224413,1749547833520,-490.0,0.00016438,2]
[365224414,1749547833530,-102.24957956,0.00016438,2]
[365224415,1749547833546,-387.75042044,0.00016438,2]
[365224416,1749547833556,-531.5,0.00016438,2]
[365224417,1749547833566,-490.68,0.00016438,2]
[365224418,1749547833575,-575.07,0.00016438,2]
[365224419,1749547833585,-490.0,0.00016438,2]
[365224420,1749547833595,-490.0,0.00016438,2]
[365224421,1749547833604,-304.80319531,0.00016438,2]
[365224422,1749547833614,-490.0,0.00016438,2]
[365224423,1749547833624,-490.0,0.00016438,2]
[365224424,1749547833634,-498.01,0.00016438,2]
[365224425,1749547833644,-490.0,0.00016438,2]
[365224426,1749547833654,-490.0,0.00016438,2]
[365224427,1749547833663,-490.0,0.00016438,2]
[365224428,1749547833674,-490.0,0.00016438,2]
[365224429,1749547833684,-546.23788833,0.00016438,2]
[365224430,1749547833696,-700.0,0.00016438,2]
[365224431,1749547833706,-152.32,0.00016446,2]
[365224432,1749547833716,-447.0,0.00016469,3]
[365224433,1749547833726,-5886.26,0.0001647,2]
[365224434,1749547833736,-500.0,0.00016578,2]
[365224435,1749547833746,-500.0,0.00016578,2]
[365224436,1749547833756,-309.00406879,0.00016578,2]
[365224437,1749547833769,-500.0,0.00016578,2]
[365224438,1749547833779,-490.0,0.00016602,2]
[365224439,1749547833789,-490.0,0.00016602,2]
[365224440,1749547833799,-490.0,0.00016602,2]
[365224441,1749547833810,-490.0,0.00016602,2]
[365224442,1749547833820,-490.0,0.00016602,2]
[365224443,1749547833830,-490.0,0.00016602,2]
[365224444,1749547833840,-282.9,0.00016602,2]
[365224445,1749547833850,-219.5,0.00016602,2]
[365224446,1749547833860,-490.0,0.00016602,2]
[365224447,1749547833869,-321.16,0.00016602,2]
[365224448,1749547833880,-490.0,0.00016602,2]
[365224449,1749547834128,-490.0,0.00016602,2]
[365224450,1749547834138,-490.0,0.00016602,2]
[365224451,1749547834148,-626.78,0.00016602,2]
[365224452,1749547834157,-339.88204647,0.00016602,2]
[365224453,1749547834167,-490.0,0.00016602,2]
[365224454,1749547834176,-490.0,0.00016602,2]
[365224455,1749547834186,-490.0,0.00016602,2]
[365224456,1749547834196,-490.0,0.00016602,2]
[365224457,1749547834205,-490.0,0.00016602,2]
[365224458,1749547834215,-490.0,0.00016602,2]
[365224459,1749547834225,-490.0,0.00016602,2]
[365224460,1749547834234,-266.82,0.00016602,2]
[365224461,1749547834244,-490.0,0.00016602,2]
[365224462,1749547834253,-490.0,0.00016602,2]
[365224463,1749547834263,-546.48197467,0.00016602,2]
[365224464,1749547834273,-193.88,0.00016602,2]
[365224465,1749547834283,-490.0,0.00016602,2]
[365224466,1749547834294,-490.0,0.00016602,2]
[365224467,1749547834303,-325.01,0.00016602,2]
[365224468,1749547834313,-321.49,0.00016636,2]
[365224469,1749547834323,-5945.38,0.00016636,2]
[365224470,1749547834332,-597.08,0.00016647,2]
[365224471,1749547834341,-490.0,0.00016767,2]
[365224472,1749547834350,-490.0,0.00016767,2]
[365224473,1749547834359,-490.0,0.00016767,2]
[365224474,1749547834368,-490.0,0.00016767,2]
[365224475,1749547834377,-183.4,0.00016767,2]
[365224476,1749547834387,-490.0,0.00016767,2]
[365224477,1749547834396,-490.0,0.00016767,2]
[365224478,1749547834405,-490.0,0.00016767,2]
[365224479,1749547834415,-490.0,0.00016767,2]
[365224480,1749547834424,-348.59,0.00016767,2]
[365224481,1749547834434,-247.37,0.00016767,2]
[365224482,1749547834444,-223.72,0.00016767,2]
[365224483,1749547834454,-490.0,0.00016767,2]
[365224484,1749547834463,-539.45,0.00016767,2]